fUSD/lending_fUSD_20240929
["ID","MTS","AMOUNT","RATE_DAILY","PERIOD"]
[339404835,1727579432492,-1196.0,0.000106,2]
[339404837,1727579432502,-1000.0,0.000106,2]
[339404838,1727579432511,-150.0,0.0001062,2]
[339404839,1727579432520,-150.0,0.00010637,2]
[339404840,1727579432530,-376.49,0.00010678,2]
[339404841,1727579432539,-150.37,0.00010678,2]
[339404842,1727579432548,-692.56,0.00010678,2]
[339404843,1727579432557,-260.06,0.00010678,2]
[339404844,1727579432567,-153.84,0.00010678,2]
[339404845,1727579432576,-153.27,0.00010678,2]
[339404846,1727579432586,-432.34,0.00010678,2]
[339404847,1727579432595,-150.0,0.00010687,2]
[339404848,1727579432605,-705.8832,0.000107,2]
[339404849,1727579432614,-1000.0,0.000107,2]
[339404850,1727579432624,-537.6,0.00010722,2]
[339404851,1727579432634,-150.0,0.00010737,2]
[339404852,1727579432643,-150.0,0.00010767,2]
[339404853,1727579432652,-150.0,0.00010787,2]
[339404854,1727579432662,-181.13469086,0.0001079,2]
[339404855,1727579432671,-463.515,0.0001079,2]
[339404856,1727579432680,-8150.5968,0.000108,2]
[339404857,1727579432689,-22851.2847,0.000108,2]
[339404858,1727579432698,-6876.5305,0.000108,2]
[339404859,1727579432708,-14215.7828,0.000108,2]
[339404860,1727579432718,-18067.5931,0.000108,2]
[339404861,1727579432727,-1000.0,0.000108,2]
[339404862,1727579432737,-190670.4452,0.000108,2]
[339404863,1727579432747,-43635.1173,0.000108,2]
[339404864,1727579432756,-150.0,0.00010836,2]
[339404865,1727579432765,-150.0,0.00010886,2]
[339404866,1727579432774,-5374.03585139,0.00010899,2]
[339404867,1727579432783,-5374.03585133,0.00010899,2]
[339404868,1727579432792,-5374.03585133,0.00010899,2]
[339404869,1727579432802,-5374.03585133,0.00010899,2]
[339404870,1727579432811,-5374.03585133,0.00010899,2]
[339404871,1727579432820,-500.0,0.000109,2]
[339404872,1727579432829,-169.19205408,0.000109,2]
[339404873,1727579432838,-1913.15792637,0.000109,2]
[339404874,1727579432847,-344.51611968,0.000109,2]
[339404875,1727579432856,-150.0,0.00010936,2]
[339404876,1727579432865,-4267.81,0.00010959,2]
[339404877,1727579432875,-250.0,0.00010959,2]
[339404878,1727579433079,-150.0,0.00010959,2]
[339404879,1727579433089,-642.09468083,0.00010973,2]
[339404880,1727579433098,-422.44759378,0.00010973,2]
[339404881,1727579433107,-500.0,0.00010973,2]
[339404882,1727579433117,-503.4288004,0.00010973,2]
[339404883,1727579433126,-251.41224922,0.00010986,2]
[339404884,1727579433135,-154.15323164,0.00010986,2]
[339404885,1727579433145,-246.57706249,0.00010986,2]
[339404886,1727579433154,-248.83381796,0.0001099,2]
[339404887,1727579433164,-153.55,0.0001099,2]
[339404888,1727579433173,-978.3100137,0.00010999,2]
[339404889,1727579433182,-1000.0,0.00010999,2]
[339404890,1727579433191,-163.15298886,0.00010999,2]
[339404891,1727579433200,-524.0,0.00011,2]
[339404892,1727579433209,-57042.06145628,0.00011,2]
[339404893,1727579433221,-27934.76181771,0.00011,2]
[339404894,1727579433232,-479.16,0.00011,2]
[339404895,1727579433243,-417479.83078126,0.00011,2]
[339404896,1727579433254,-3838.7342473,0.00011,2]
[339404898,1727579437902,-3725.18505877,0.00010899,2]
[339404899,1727579437914,-1648.85079256,0.00010899,2]
[339404900,1727579437924,-1000.0,0.00010999,2]
[339404901,1727579437933,-221.15357437,0.00011,2]
[339404902,1727579437942,-30871.26472065,0.00011,2]
[339404903,1727579438097,-62986.20374858,0.00011,2]
[339404904,1727579438108,-33260.85076294,0.00011,2]
[339404905,1727579438119,-998.36819991,0.00011,2]
[339404906,1727579438296,-191361.11973021,0.00011,2]
[339404922,1727579440042,-5067.44166413,0.00011,2]
[339404923,1727579440053,-3226.05,0.00011,2]
[339404924,1727579440064,-1252.54523243,0.00011,2]
[339404925,1727579440076,-2830.02928545,0.00011,2]
[339404926,1727579440087,-1027.18596745,0.00011,2]
[339404927,1727579440099,-331.37356652,0.00011,2]
[339404928,1727579440241,-6395.4221137,0.00011,2]
[339404942,1727579442882,-293.80853246,0.00010899,2]
[339404943,1727579442893,-1728.53770147,0.00010899,2]
[339404944,1727579443079,-378.703701,0.00010899,2]
[339404945,1727579443090,-2972.9859164,0.00010899,2]
[339404946,1727579443099,-1170.3240836,0.00011,2]
[339404947,1727579443111,-2722.72632865,0.00011,2]
[339404948,1727579443122,-696.90360077,0.00011,2]
[339404949,1727579443132,-1383.95848256,0.00011,2]
[339404950,1727579443143,-656.86101804,0.00011,2]
[339404951,1727579443154,-445.03084536,0.00011,2]
[339404952,1727579443280,-443.4506406,0.00011,2]
[339404973,1727579445855,-5374.03585133,0.00010899,2]
[339404974,1727579445866,-7530.76414865,0.00011,2]
[339404975,1727579445877,-15198.06703155,0.00011,2]
[339404976,1727579445891,-35510.06290173,0.00011,2]
[339404977,1727579445901,-119083.30389919,0.00011,2]
[339404978,1727579445911,-407803.93414119,0.00011,2]
[339404979,1727579445924,-5120.18609068,0.00011,2]
[339404980,1727579446053,-4411.4206032,0.00011,2]
[339404981,1727579446065,-2659.11323787,0.00011,2]
[339404982,1727579525964,150.0,8.359e-05,2]
[339404983,1727579525988,150.0,8.359e-05,2]
[339404984,1727579526011,49.63,8.359e-05,2]
[339404985,1727579538585,500.0,0.00022,120]
[339404987,1727579601143,200.0,0.00020959,120]
[339404988,1727579699677,155.17,0.00013918,30]
[339404989,1727579771686,513.40627688,0.00021999,120]
[339404990,1727579888199,2001.82,0.00015,30]
[339404991,1727579894180,500.0,0.00022,120]
[339404995,1727580070901,150.0,9.883e-05,2]
[339404996,1727580070923,150.0,9.883e-05,2]
[339404997,1727580070944,150.0,9.883e-05,2]
[339404998,1727580070967,150.0,9.883e-05,2]
[339404999,1727580070991,150.0,9.883e-05,2]
[339405000,1727580071017,24.43,9.883e-05,2]
[339405001,1727580158778,-150.0,9.901e-05,2]
[339405002,1727580178970,9886.76,0.00014,120]
[339405003,1727580205152,150.0,9.894e-05,2]
[339405004,1727580205174,150.0,9.894e-05,2]
[339405005,1727580205196,459.02,9.894e-05,2]
[339405006,1727580209640,347.15,8.219e-05,2]
[339405007,1727580263611,500.0,0.00022,120]
[339405008,1727580267196,155.17,0.00013918,30]
[339405009,1727580295062,150.0,9.885e-05,2]
[339405010,1727580295086,100.0,9.885e-05,2]
[339405011,1727580308893,296.11,9.885e-05,2]
[339405024,1727580611859,169.49,9.867e-05,2]
[339405025,1727580613763,235.4,9.867e-05,2]
[339405026,1727580632046,-322.56,9.902e-05,2]
[339405027,1727580632055,-243.48,9.904e-05,2]
[339405028,1727580632064,-677.44,9.952e-05,2]
[339405029,1727580632073,-1134.73587416,0.00010075,2]
[339405031,1727580632084,-176.9,0.00010075,2]
[339405033,1727580632093,-347.15,0.0001047,2]
[339405035,1727580632102,-204.18,0.00010526,2]
[339405037,1727580632112,-1116.86217306,0.000106,2]
[339405038,1727580632123,-3336.88164217,0.000106,2]
[339405040,1727580632134,-1348.69478477,0.000106,2]
[339405041,1727580632143,-2002.4453,0.000106,2]
[339405042,1727580632152,-461.8,0.00010623,2]
[339405043,1727580632162,-300.0,0.00010689,2]
[339405044,1727580632171,-499.99,0.0001069,2]
[339405045,1727580632180,-245.56,0.0001069,2]
[339405046,1727580632189,-245.56,0.0001069,2]
[339405047,1727580632199,-150.0,0.00010699,2]
[339405048,1727580632208,-439.93457123,0.000107,2]
[339405049,1727580632219,-5950.0,0.000107,2]
[339405050,1727580632230,-2399.99999998,0.000107,2]
[339405051,1727580632304,-78628.92292879,0.000107,2]
[339405052,1727580632313,-11785.4588,0.000107,2]
[339405053,1727580632322,-150.0,0.00010762,2]
[339405054,1727580632331,-245.56,0.0001079,2]
[339405055,1727580632340,-357.7055,0.000108,2]
[339405056,1727580632349,-8373.296,0.000108,2]
[339405057,1727580632358,-2074.2614,0.000108,2]
[339405058,1727580632368,-156.39307044,0.00010807,2]
[339405059,1727580632377,-200.0,0.00010881,2]
[339405060,1727580632387,-200.0,0.00010883,2]
[339405061,1727580632396,-200.0,0.00010891,2]
[339405062,1727580632406,-1291.27620836,0.00010899,2]
[339405063,1727580632415,-1291.27620827,0.00010899,2]
[339405064,1727580632424,-1291.27620827,0.00010899,2]
[339405065,1727580632433,-1291.27620827,0.00010899,2]
[339405066,1727580632442,-1291.27620827,0.00010899,2]
[339405067,1727580632451,-1291.27620827,0.00010899,2]
[339405068,1727580632460,-1291.27620827,0.00010899,2]
[339405069,1727580632469,-1291.27620827,0.00010899,2]
[339405070,1727580632478,-1291.27620827,0.00010899,2]
[339405071,1727580632487,-10012.3542,0.000109,2]
[339405072,1727580632497,-345.5009,0.000109,2]
[339405073,1727580632506,-45382.8903,0.000109,2]
[339405074,1727580632515,-167.78396599,0.000109,2]
[339405075,1727580632524,-1291.27620827,0.000109,2]
[339405076,1727580632533,-314.73694087,0.000109,2]
[339405077,1727580632544,-1000.45645981,0.000109,2]
[339405078,1727580632553,-4201.7661823,0.000109,2]
[339405079,1727580632562,-318.97284955,0.000109,2]
[339405080,1727580632571,-500.0,0.00010912,2]
[339405082,1727580632580,-1500.0,0.00010924,2]
[339405084,1727580632589,-500.0,0.00010945,2]
[339405086,1727580632597,-500.0,0.00010945,2]
[339405088,1727580632606,-500.0,0.00010945,2]
[339405089,1727580632615,-500.0,0.00010945,2]
[339405090,1727580632624,-500.0,0.00010945,2]
[339405091,1727580632633,-395.3064,0.00010945,2]
[339405092,1727580632642,-150.0,0.00010959,2]
[339405093,1727580632652,-191.12,0.00010959,2]
[339405094,1727580632661,-250.0,0.00010959,2]
[339405095,1727580632670,-296.62103428,0.00010973,2]
[339405096,1727580632679,-500.0,0.00010973,2]
[339405097,1727580632688,-500.0,0.00010973,2]
[339405098,1727580632697,-201.01668008,0.00010973,2]
[339405099,1727580632706,-500.0,0.00010973,2]
[339405100,1727580632714,-150.0,0.00010974,2]
[339405101,1727580632724,-153.83,0.0001099,2]
[339405102,1727580632733,-153.83,0.0001099,2]
[339405103,1727580632741,-153.83,0.0001099,2]
[339405104,1727580632750,-153.83,0.0001099,2]
[339405105,1727580632759,-153.83,0.0001099,2]
[339405106,1727580632768,-153.83,0.0001099,2]
[339405107,1727580632777,-153.83,0.0001099,2]
[339405108,1727580632786,-2381.89658873,0.00010999,2]
[339405109,1727580632795,-2000.0,0.00010999,2]
[339405110,1727580632804,-524.88763378,0.00010999,2]
[339405111,1727580632813,-500.0,0.00010999,2]
[339405112,1727580632822,-500.0,0.00010999,2]
[339405113,1727580632831,-500.0,0.00010999,2]
[339405114,1727580632840,-500.0,0.00010999,2]
[339405115,1727580632850,-427.44008392,0.00010999,2]
[339405116,1727580632859,-505.76635891,0.00010999,2]
[339405117,1727580632868,-176.9228595,0.00011,2]
[339405118,1727580632879,-105716.82627626,0.00011,2]
[339405119,1727580632891,-899.999998,0.00011,2]
[339405120,1727580632904,-255.5570155,0.00011,2]
[339405121,1727580632920,-609.86344662,0.00011,2]
[339405122,1727580632931,-117057.14017317,0.00011,2]
[339405123,1727580638174,-607.43696717,0.00011,2]
[339405124,1727580638185,-255.0,0.00011,2]
[339405125,1727580638196,-653.67901261,0.00011,2]
[339405126,1727580638208,-3936.04611518,0.00011,2]
[339405127,1727580638219,-626.16993068,0.00011,2]
[339405128,1727580638294,-255.3477856,0.00011,2]
[339405129,1727580638414,-208222.7997913,0.00011,2]
[339405130,1727580638423,-1213079.71497224,0.00011,2]
[339405131,1727580638434,-835.77,0.00011,2]
[339405132,1727580638445,-6017.73262,0.00011,2]
[339405133,1727580638457,-2735.53908701,0.00011,2]
[339405134,1727580638467,-6687.88666547,0.00011,2]
[339405178,1727580638963,500.0,0.00022,120]
[339405281,1727580640405,-3260.3278724,0.00011,2]
[339405282,1727580640419,-1598.8021276,0.00011,2]
[339405297,1727580646221,-500.0,0.00010973,2]
[339405298,1727580646230,-323.75820295,0.00011,2]
[339405308,1727580844960,155.17,0.00013918,30]
[339405309,1727580915656,327.23,8.219e-05,2]
[339405310,1727581000615,500.0,0.00022,120]
[339405315,1727581069558,150.0,9.879e-05,2]
[339405316,1727581069580,72.62,9.879e-05,2]
[339405371,1727581164936,150.0,9.856e-05,2]
[339405372,1727581164958,100.0,9.856e-05,2]
[339405378,1727581223764,685.53,9.836e-05,2]
[339405380,1727581259158,150.0,9.873e-05,2]
[339405381,1727581259181,3.97,9.873e-05,2]
[339405382,1727581259223,146.03,9.878e-05,2]
[339405383,1727581259245,7.94,9.878e-05,2]
[339405384,1727581259704,142.06,9.884e-05,2]
[339405385,1727581259726,11.91,9.884e-05,2]
[339405386,1727581259924,153.97,9.889e-05,2]
[339405387,1727581260120,153.97,9.895e-05,2]
[339405388,1727581348105,500.0,0.00022,120]
[339405389,1727581394243,300.0,9.722e-05,2]
[339405390,1727581415466,155.17,0.00013918,30]
[339405391,1727581453985,275.61,9.755e-05,2]
[339405392,1727581457561,258.05,9.88e-05,2]
[339405393,1727581474982,340.61,8.219e-05,2]
[339405394,1727581486066,-153.97,9.9e-05,2]
[339405395,1727581513797,150.0,9.888e-05,2]
[339405396,1727581640951,500.0,9.824e-05,2]
[339405398,1727581659495,18768.04,9.776e-05,2]
[339405399,1727581659574,448.97,9.776e-05,2]
[339405400,1727581709114,250.0,0.00022,120]
[339405401,1727581715213,-153.97,9.906e-05,2]
[339405402,1727581715234,-402.46077599,9.906e-05,2]
[339405403,1727581715258,-153.97,9.911e-05,2]
[339405404,1727581715283,-153.97,9.917e-05,2]
[339405405,1727581715305,-153.97,9.922e-05,2]
[339405406,1727581715327,-45993.88671298,9.922e-05,2]
[339405407,1727581715349,-150.0,9.981e-05,2]
[339405408,1727581715374,-250.0,9.982e-05,2]
[339405409,1727581715398,-8569.52,9.982e-05,2]
[339405410,1727581715421,-741.95,0.00010011,2]
[339405411,1727581715443,-176.63,0.00010124,2]
[339405412,1727581715464,-340.61,0.00010465,2]
[339405413,1727581715484,-7215.94416971,0.00010754,2]
[339405414,1727581715508,-150.0,0.00010833,2]
[339405415,1727581715530,-499.99,0.00010869,2]
[339405416,1727581715552,-200.0,0.00010885,2]
[339405417,1727581715574,-200.0,0.00010887,2]
[339405418,1727581715596,-200.0,0.00010894,2]
[339405419,1727581715619,-200.0,0.00010895,2]
[339405420,1727581715643,-3854.9145,0.00010899,2]
[339405421,1727581715663,-3062.215,0.00010899,2]
[339405422,1727581715682,-916.8634,0.00010899,2]
[339405423,1727581715877,-3215.6699,0.00010899,2]
[339405424,1727581715897,-2500.0,0.00010899,2]
[339405425,1727581715919,-178.23997668,0.00010899,2]
[339405426,1727581715939,-178.23997666,0.00010899,2]
[339405427,1727581715959,-178.23997666,0.000109,2]
[339405428,1727581715979,-206.54651259,0.000109,2]
[339405429,1727581715999,-178.23997666,0.000109,2]
[339405430,1727581716020,-500.0,0.00010912,2]
[339405431,1727581716042,-150.0,0.00010929,2]
[339405432,1727581716064,-162.64,0.00010959,2]
[339405433,1727581716085,-250.0,0.00010959,2]
[339405434,1727581716104,-1002.32,0.00010959,2]
[339405435,1727581716124,-500.0,0.00010973,2]
[339405436,1727581716145,-309.25518438,0.00010973,2]
[339405437,1727581716167,-500.0,0.00010973,2]
[339405438,1727581716187,-159.64522108,0.00010973,2]
[339405439,1727581716207,-292.32664863,0.0001099,2]
[339405440,1727581716228,-159.83,0.0001099,2]
[339405441,1727581716248,-150.88728716,0.00010999,2]
[339405442,1727581716274,-1917.59684688,0.00010999,2]
[339405443,1727581716297,-239989.22873418,0.00010999,2]
[339405444,1727581716318,-2008.59456738,0.00010999,2]
[339405445,1727581716341,-500.0,0.00010999,2]
[339405446,1727581716365,-157.81057349,0.00010999,2]
[339405447,1727581716385,-500.0,0.00010999,2]
[339405448,1727581716406,-535.1553191,0.00010999,2]
[339405449,1727581716427,-522.0,0.00011,2]
[339405450,1727581716454,-264827.77898082,0.00011,2]
[339405451,1727581716475,-2679366.20028569,0.00011,2]
[339405452,1727581716497,-8266453.68947328,0.00011,2]
[339405472,1727581832084,-250.0,9.915e-05,2]
[339405473,1727581832094,-436.84,9.963e-05,2]
[339405474,1727581832104,-305.74,0.00010239,2]
[339405475,1727581832113,-1500.0,0.00010727,2]
[339405476,1727581832123,-151.17342461,0.00010775,2]
[339405477,1727581832134,-335.30695342,0.00010796,2]
[339405478,1727581832144,-102.97579322,0.00010831,2]
[339405479,1727581832255,-232.33116019,0.00010831,2]
[339405480,1727581832265,-868.19052785,0.00010843,2]
[339405481,1727581832562,-631.80947215,0.00010843,2]
[339405482,1727581832573,-425.81349103,0.00010873,2]
[339405484,1727581838261,-335.30695341,0.00010865,2]
[339405485,1727581838271,-160.5319148,0.00010873,2]
[339405486,1727581838280,-500.0,0.00010873,2]
[339405487,1727581838290,-500.0,0.00010873,2]
[339405488,1727581838301,-799.0,0.00010878,2]
[339405489,1727581838311,-2256.99774825,0.00010881,2]
[339405490,1727581838320,-8999.830317,0.00010881,2]
[339405491,1727581838331,-6620.84568957,0.00010881,2]
[339405492,1727581838398,-134412.73666588,0.00010881,2]
[339405493,1727581838407,-21860.92889375,0.00010883,2]
[339405494,1727581838417,-2256.99774825,0.00010883,2]
[339405495,1727581838426,-2256.99774825,0.00010884,2]
[339405496,1727581838435,-499.99,0.00010884,2]
[339405497,1727581838444,-21860.92889375,0.00010885,2]
[339405498,1727581838453,-2934.23437958,0.00010885,2]
[339405499,1727581838463,-153.73,0.00010886,2]
[339405500,1727581838472,-2934.23437958,0.00010887,2]
[339405501,1727581838481,-200.0,0.00010887,2]
[339405502,1727581838490,-2256.99774825,0.00010888,2]
[339405503,1727581838509,-150033.41267245,0.0001089,2]
[339405504,1727581838519,-21860.92889375,0.0001089,2]
[339405505,1727581838529,-2256.99774825,0.0001089,2]
[339405506,1727581838539,-21860.92889375,0.00010891,2]
[339405507,1727581838549,-2934.23437958,0.00010892,2]
[339405508,1727581838558,-2934.23437958,0.00010893,2]
[339405509,1727581838568,-2934.23437958,0.00010894,2]
[339405510,1727581838577,-3220.33810139,0.00010896,2]
[339405511,1727581838590,-13247.93126004,0.00010896,2]
[339405512,1727581838607,-33060.85082986,0.00010896,2]
[339405513,1727581838719,-784.39333094,0.00010896,2]
[339405514,1727581838730,-291.69999996,0.00010896,2]
[339405515,1727581838741,-868.46789177,0.00010896,2]
[339405516,1727581838754,-22987.75951898,0.00010896,2]
[339405549,1727581840315,-664.76684642,0.00010896,2]
[339405584,1727581843317,-2171.59067699,0.00010896,2]
[339405586,1727581846082,-639.26,0.00010896,2]
[339405589,1727581846535,-72096.3542161,0.00010896,2]
[339405591,1727581846544,-150033.41267245,0.00010898,2]
[339405592,1727581846555,-112309.96245925,0.00010899,2]
[339405593,1727581846575,-5408.47626602,0.00010899,2]
[339405594,1727581846586,-266.65137814,0.00010899,2]
[339405595,1727581846603,-1006.8,0.00010899,2]
[339405596,1727581846615,-255.5543,0.00010899,2]
[339405598,1727581992249,500.0,0.00022,120]
[339405599,1727581994960,2020.131838,0.00022,120]
[339405600,1727582046553,377.9,8.219e-05,2]
[339405601,1727582194140,500.0,9.898e-05,2]
[339405602,1727582219512,155.17,0.00013918,30]
[339405603,1727582227967,150.0,9.873e-05,2]
[339405604,1727582227990,150.0,9.873e-05,2]
[339405605,1727582228010,194.26252568,9.873e-05,2]
[339405606,1727582228030,23405.73747432,9.873e-05,2]
[339405607,1727582262336,507.25,9.869e-05,2]
[339405608,1727582278578,250.0,9.878e-05,2]
[339405609,1727582282134,609.86,9.878e-05,2]
[339405611,1727582503504,-187.80886264,9.911e-05,2]
[339405612,1727582503883,-150.0,9.911e-05,2]
[339405613,1727582504628,-150.0,9.911e-05,2]
[339405614,1727582575524,150.0,8.219e-05,2]
[339405615,1727582575545,150.0,8.219e-05,2]
[339405616,1727582575566,59.0,8.219e-05,2]
[339405617,1727582580878,206.44,9.861e-05,2]
[339405620,1727582611204,1811.86,9.855e-05,2]
[339405623,1727582644379,756.38,9.882e-05,2]
[339405625,1727582716081,150.0,9.888e-05,2]
[339405638,1727582765832,155.17,0.00013918,30]
[339405639,1727582777304,334.82,9.878e-05,2]
[339405642,1727582815676,228.34,9.873e-05,2]
[339405645,1727582845600,250.0,9.899e-05,2]
[339405659,1727582859065,17792.18,9.899e-05,2]
[339405660,1727582869606,208.09,9.899e-05,2]
[339405688,1727583032287,-154.71,9.904e-05,2]
[339405689,1727583032297,-8815.63,9.91e-05,2]
[339405690,1727583032307,-98.92113736,9.911e-05,2]
[339405691,1727583032316,-250.0,9.929e-05,2]
[339405692,1727583032325,-300.0,9.965e-05,2]
[339405693,1727583032336,-771.78,9.98e-05,2]
[339405694,1727583032345,-793.56,0.0001001,2]
[339405695,1727583032354,-4595.0,0.0001002,2]
[339405696,1727583032363,-799.0,0.00010334,2]
[339405697,1727583032373,-179.12,0.0001043,2]
[339405698,1727583032381,-359.0,0.0001047,2]
[339405699,1727583032391,-3757.85655835,0.00010789,2]
[339405700,1727583032400,-150.0,0.00010798,2]
[339405701,1727583032410,-236.0216,0.00010799,2]
[339405702,1727583032419,-2956.6817,0.00010799,2]
[339405703,1727583032429,-10116.86488258,0.00010799,2]
[339405704,1727583034846,-14611.99016922,0.00010799,2]
[339405705,1727583034902,-890.11270915,0.00010799,2]
[339405706,1727583034913,-1045.44000008,0.00010799,2]
[339405763,1727583038359,-766.51726521,0.00010799,2]
[339405764,1727583038370,-1190.31632735,0.00010799,2]
[339405766,1727583038516,-757.258615,0.00010799,2]
[339405767,1727583038528,-1602.55939389,0.00010799,2]
[339405768,1727583038539,-314.51665024,0.00010799,2]
[339405769,1727583038571,-29047.07754972,0.00010799,2]
[339405770,1727583038652,-306.42367944,0.00010799,2]
[339405771,1727583038664,-7635.85806297,0.00010799,2]
[339405772,1727583038675,-649.35606077,0.00010799,2]
[339405774,1727583038747,-56695.51463438,0.00010799,2]
[339405775,1727583038756,-2500.0,0.00010799,2]
[339405776,1727583038765,-184.16917802,0.00010799,2]
[339405777,1727583038775,-799.0,0.00010877,2]
[339405778,1727583038784,-4309.99110657,0.00010899,2]
[339405779,1727583038795,-529.76522685,0.00010899,2]
[339405818,1727583040254,-1600.0,0.00010899,2]
[339405819,1727583040307,-1000.0,0.00010799,2]
[339405820,1727583040317,-1278.71814926,0.00010899,2]
[339405821,1727583040327,-775.24415452,0.00010899,2]
[339405822,1727583040339,-7659.00000018,0.00010899,2]
[339405823,1727583040350,-14633.24963166,0.00010899,2]
[339405824,1727583040359,-21860.92889375,0.00010899,2]
[339405825,1727583040368,-5068.1881,0.00010899,2]
[339405826,1727583040377,-131968.1043,0.00010899,2]
[339405827,1727583040387,-685.73842445,0.000109,2]
[339405828,1727583040396,-184.16917802,0.000109,2]
[339405829,1727583040405,-3964.8381295,0.000109,2]
[339405830,1727583040414,-3124.92811808,0.000109,2]
[339405831,1727583040424,-743.42826026,0.000109,2]
[339405832,1727583040433,-743.42826026,0.000109,2]
[339405833,1727583040442,-407.51384385,0.000109,2]
[339405834,1727583040451,-159.33880151,0.000109,2]
[339405835,1727583040460,-2177.30301356,0.000109,2]
[339405836,1727583040469,-200.33875338,0.000109,2]
[339405837,1727583040478,-5273.57038036,0.000109,2]
[339405838,1727583040487,-9454.83418285,0.000109,2]
[339405839,1727583040496,-536.0916428,0.000109,2]
[339405840,1727583040505,-500.0,0.00010912,2]
[339405841,1727583040514,-150.0,0.00010959,2]
[339405842,1727583040523,-250.0,0.00010959,2]
[339405843,1727583040532,-332.96607474,0.00010959,2]
[339405844,1727583040554,-181.14392526,0.00010959,2]
[339405845,1727583040563,-111.30695662,0.00010973,2]
[339405846,1727583040574,-385.95255073,0.00010973,2]
[339405847,1727583040591,-2.74049265,0.00010973,2]
[339405848,1727583040601,-171.0243331,0.00010973,2]
[339405849,1727583040610,-78.26101354,0.00010973,2]
[339405915,1727583043364,-96.697786,0.00010973,2]
[339405916,1727583043374,-694.24100881,0.00010975,2]
[339405917,1727583043382,-153.73,0.0001099,2]
[339405918,1727583043392,-153.73,0.0001099,2]
[339405919,1727583043401,-1054.67443374,0.00010999,3]
[339405920,1727583043410,-2271.0,0.00010999,2]
[339405921,1727583043419,-2000.0,0.00010999,2]
[339405922,1727583043428,-500.0,0.00010999,2]
[339405923,1727583043438,-465.59059138,0.00010999,2]
[339405924,1727583043447,-481.02026396,0.00010999,2]
[339405925,1727583043457,-580.0,0.00011,2]
[339405926,1727583043466,-2132.06650028,0.00011,2]
[339405927,1727583043477,-7707.73423594,0.00011,2]
[339405928,1727583043493,-549.999999,0.00011,2]
[339405929,1727583043505,-1083.11461126,0.00011,2]
[339405930,1727583043516,-564.74894883,0.00011,2]
[339405931,1727583043586,-853.28999999,0.00011,2]
[339405932,1727583043597,-539.447999,0.00011,2]
[339405933,1727583043691,-832.28687525,0.00011,2]
[339405934,1727583043702,-874.54195962,0.00011,2]
[339405935,1727583046263,-2859.89930432,0.00011,2]
[339405936,1727583046319,-14739.47726079,0.00011,2]
[339405937,1727583046330,-367.24045252,0.00011,2]
[339405938,1727583046374,-277.72958304,0.00011,2]
[339405939,1727583046385,-4960.51153717,0.00011,2]
[339405940,1727583046396,-7818.3596,0.00011,2]
[339405941,1727583046408,-273.72011597,0.00011,2]
[339405942,1727583046429,-12350.31781265,0.00011,2]
[339405943,1727583046440,-417.47216,0.00011,2]
[339405944,1727583046452,-297852.40342438,0.00011,2]
[339405945,1727583046462,-1806.52,0.00011,2]
[339405946,1727583046472,-346955.44302011,0.00011,2]
[339405947,1727583046483,-1102.43613394,0.00011,2]
[339405948,1727583046494,-4703.51754509,0.00011,2]
[339405949,1727583046506,-1225.48002,0.00011,2]
[339405950,1727583046517,-1698.87654714,0.00011,2]
[339405951,1727583046529,-3795.64476265,0.00011,2]
[339405952,1727583046542,-1858.57567749,0.00011,2]
[339405953,1727583046599,-612.67,0.00011,2]
[339405954,1727583046655,-520.38152683,0.00011,2]
[339405955,1727583046666,-281.00881241,0.00011,2]
[339405956,1727583046677,-272457.67935272,0.00011,2]